Cogmind - Beta 16 @@@ ROGUE MODE // 2025.10.31 @ 20:43:38 Player: BlobtheGreat Result: Destroyed by S-27 Virus with Autogun Performance ------------- Evolutions (6) 3000 Regions Visited (14) 2800 Robots Destroyed (208) 1040 Value Destroyed (5470) 5470 Prototype IDs (34) 680 Alien Tech Used (0) 0 Bonus (2064) 2064 TOTAL SCORE: 15054 Bonus ------- High Alert Combat Kills 376 Follower Combat Kills 888 Registered with UFD 300 Met Optimus in HQ 500 Cogmind --------- Core Integrity 0/1150 Matter 25/300 Energy 77/100 System Corruption 1% Temperature Cool (0) Movement Core (100) Ox1 Location -4/Upper Caves Parts ------- > --- POWER (2) -------- (None) > --- PROPULSION (6) --- Improved Gyrokinetic Inverter > --- UTILITY (8) ------ Advanced Visual Processing Unit > --- WEAPON (3) ------- Hypervelocity Coil Gun > --- INVENTORY (5) ---- Antigrav System Improved Antigrav System Improved Antigrav System Faulty Plasma Lance DRS Beacon (Ready) Peak State ------------ > --- POWER ------------ Heavy Deuterium Engine > --- PROPULSION ------- Combat Airjet Combat Gravmag System Combat Gravmag System Combat Gravmag System Improved Gyrokinetic Inverter > --- UTILITY ---------- Large Storage Unit Advanced Visual Processing Unit Advanced Sensor Array Advanced Signal Interpreter Advanced Targeting Computer Improved Transmission Jammer Improved Hacking Suite > --- WEAPON ----------- Advanced Plasma Cannon Matter Neutralizer Hypervelocity Gauss Cannon > --- INVENTORY -------- Advanced Heat Sink Quantum Capacitor Advanced Reaction Control System Improved Propulsion Shielding Hardened Light Armor Plating Improved Medium Armor Plating Hypervelocity Coil Gun Hypervelocity Mass Driver Hypervelocity Mass Driver Improved Remote Datajack Ionic Axe Kinetic Spear DRS Beacon [Rating: 90] Favorites ----------- Power Heavy Deuterium Engine Engine Heavy Deuterium Engine Power Core Light Nuclear Core Propulsion Improved Treads Treads Improved Treads Wheel Armored Huge Wheel Hover Unit Combat Airjet Flight Unit Improved VTOL Module Utility Huge Storage Unit Device Seismic Detector Storage Huge Storage Unit Processor Advanced Visual Processing Unit Hackware Improved Hacking Suite Protection Hardened Light Armor Plating Weapon Improved Medium Laser Energy Gun Improved Medium Laser Energy Cannon Phase Cannon Ballistic Gun Assault Rifle Ballistic Cannon Hypervelocity Gauss Cannon Launcher Precision Rocket Launcher Special Weapon Improved Remote Datajack Impact Weapon Hammer Slashing Weapon Chainsword Piercing Weapon Kinetic Spear Build | -11 -10 -10 -9 -9 -8 -7 -7 -7 -7 -5 -5 -5 -4 -4 ------- Run | Yrd Mat Min Mat Min Mat Fac Sto Rec Scr Fac Was Fac Fac Upp Slots Evolved 12 | . . . 2 . 2 2 . . . 4 . . 2 . Power 1 | . . . . . . . . . . 1 . . . . Propulsion 4 | . . . 1 . 1 . . . . 1 . . 1 . Utility 6 | . . . 1 . 1 1 . . . 2 . . 1 . Weapon 1 | . . . . . . 1 . . . . . . . . Parts Attached 129 | 7 6 1 22 2 12 14 12 2 4 12 1 23 10 1 Power 15 | 1 1 . 2 1 2 1 1 . . 1 . 3 2 . Engine 8 | 1 1 . 1 . 1 1 1 . . 1 . 1 . . Core 7 | . . . 1 1 1 . . . . . . 2 2 . Reactor . | . . . . . . . . . . . . . . . Propulsion 37 | 2 1 . 9 1 4 2 4 1 2 4 . 6 1 . Treads 18 | 2 1 . 8 1 2 2 1 1 . . . . . . Leg . | . . . . . . . . . . . . . . . Wheel 2 | . . . . . 1 . 1 . . . . . . . Hover 16 | . . . 1 . . . 2 . 2 4 . 6 1 . Flight 1 | . . . . . 1 . . . . . . . . . Utility 36 | 2 2 . 5 . 1 5 . 1 2 5 1 10 2 . Device 16 | 1 1 . 2 . . 3 . 1 1 1 1 4 1 . Storage 4 | 1 1 . 1 . . . . . 1 . . . . . Processor 5 | . . . . . . 1 . . . . . 3 1 . Hackware 6 | . . . . . . . . . . 3 . 3 . . Protection 5 | . . . 2 . 1 1 . . . 1 . . . . Artifact . | . . . . . . . . . . . . . . . Weapon 41 | 2 2 1 6 . 5 6 7 . . 2 . 4 5 1 Energy Gun 14 | 1 . . 4 . 5 1 3 . . . . . . . Energy Cannon 5 | . . . . . . 1 1 . . . . 1 2 . Ballistic Gun 6 | 1 . . 1 . . 1 . . . 1 . 1 . 1 Ballistic Cannon 3 | . . . . . . . 1 . . . . 1 1 . Launcher 6 | . 2 . 1 . . 1 2 . . . . . . . Special Weapon 1 | . . . . . . . . . . 1 . . . . Impact Weapon 1 | . . 1 . . . . . . . . . . . . Slashing Weapon 3 | . . . . . . 2 . . . . . . 1 . Piercing Weapon 2 | . . . . . . . . . . . . 1 1 . Special Melee Weapon . | . . . . . . . . . . . . . . . Unidentified Prototypes 21 | . . . 4 . 3 . 10 . . 1 . 1 2 . Corrupted Parts 3 | . . . . . . . . . . 2 . 1 . . System Corruption 6 | . . . . . . . . . . 3 . 3 . . Parts Lost 45 | . 3 . 4 1 1 2 1 . . . . 13 20 . Power 11 | . 1 . 1 1 1 . . . . . . 2 5 . Propulsion 14 | . 1 . 1 . . 1 . . . . . 6 5 . Utility 13 | . 1 . . . . 1 1 . . . . 4 6 . Weapon 7 | . . . 2 . . . . . . . . 1 4 . Highest Loss Streak 11 | . 2 . 2 1 1 1 1 . . . . 3 11 . To Critical Strikes . | . . . . . . . . . . . . . . . Average Backups 20 | 4 12 14 23 24 24 23 24 25 23 13 14 12 11 4 Power . | . . . 1 . . . . . . . . . . . Propulsion 6 | 2 4 3 8 9 8 8 9 8 6 2 3 1 . 3 Utility 7 | . 3 7 8 9 8 8 7 8 9 7 6 5 5 . Weapon 5 | . 3 4 4 6 7 7 7 7 7 4 4 4 4 1 Tool/Special . | . . . . . . . . . . . . . . . Unused Backups 32 | . 2 4 7 . 1 2 . 2 2 . . 3 6 3 Power 1 | . . . 1 . . . . . . . . . . . Propulsion 9 | . 2 1 1 . . . . 2 . . . . . 3 Utility 15 | . . . 5 . . 1 . . 2 . . 2 5 . Weapon 7 | . . 3 . . 1 1 . . . . . 1 1 . Tool/Special . | . . . . . . . . . . . . . . . Average Slot Usage (%) 89 | . 98 100 99 99 97 91 91 90 70 81 88 80 68 15 Engine 5 | . 13 14 4 . 1 7 7 7 7 7 11 6 2 . Core 3 | . . . 6 10 7 . . . . . . 2 3 . Treads 19 | . 27 28 32 33 31 14 13 14 13 . . . . . Wheel 2 | . . . . . 2 7 7 7 6 . . . . . Hover 5 | . . . . . . . 1 . 2 29 29 27 22 5 Device 12 | . 12 14 11 11 17 15 15 15 15 15 17 8 7 . Storage 8 | . 14 14 11 11 9 7 7 7 7 5 5 5 4 . Processor 4 | . . . . . . 7 7 7 7 5 5 10 14 5 Hackware 1 | . . . . . . . . . . 4 5 7 4 . Protection 6 | . . . 10 11 9 6 7 6 7 5 5 2 . . Energy Gun 12 | . 13 13 16 21 17 16 21 21 . . . . . . Ballistic Gun 2 | . 14 14 4 . . 2 . . . . . . . 5 Peak Build Rating 90 | 7 8 9 28 26 37 48 52 52 44 66 64 80 90 19 Average Rating 38 | 5 7 8 23 25 30 44 48 48 38 59 64 68 70 19 On Entrance 34 | . 7 8 9 26 26 37 46 49 36 44 64 64 73 21 Avg Prop Armor Cover (%) 12 | . . . . . 13 13 12 13 17 . . 4 4 . Naked Turns . | . . . . . . . . . . . . . . . Heaviest Build 114 | 13 30 30 97 97 102 110 114 109 99 53 48 55 55 . Greatest Support 86 | 40 40 40 69 66 86 42 28 44 34 50 49 58 70 . Greatest Overweight (x) 4 | . . . 1 1 3 3 4 3 3 1 . 2 1 . Average Overweight (x) 1 | . . . . 1 1 2 3 2 2 . . . . . Largest Inventory Capacity 25 | 8 15 15 25 25 25 25 25 25 25 15 15 15 15 5 Average Capacity 21 | 7 14 15 24 25 25 25 25 25 24 15 15 15 14 5 Most Carried 25 | 7 15 15 25 25 25 25 25 25 25 15 15 15 15 5 Average Carried 20 | 4 12 14 23 24 24 24 24 24 24 14 15 13 12 5 Final Capacity 25 | 8 15 15 25 25 25 25 25 25 15 15 15 15 5 5 Final Carried 25 | 7 15 15 25 25 25 25 25 25 15 15 15 11 5 5 Class Distribution -------------------- 59% | Mutant 12% | Tank 11% | Commander-Mutant 4% | Scout Dominant Class ---------------- Mutant | -10/Materials Mutant | -10/Mines Mutant | -9/Materials Mutant | -9/Mines Mutant | -8/Materials Tank | -7/Factory Tank | -7/Storage Tank | -7/Recycling Commander-Mutant | -7/Scraptown Mutant | -5/Factory Mutant | -5/Waste Hacker-Mutant | -5/Factory Scout | -4/Factory Scout | -4/Upper Caves Resources | -11 -10 -10 -9 -9 -8 -7 -7 -7 -7 -5 -5 -5 -4 -4 ----------- Run | Yrd Mat Min Mat Min Mat Fac Sto Rec Scr Fac Was Fac Fac Upp Matter Collected 3682 | 291 250 129 617 62 168 389 257 117 15 304 95 792 196 . Remotely . | . . . . . . . . . . . . . . . Salvage Created 7145 | 171 544 46 1487 489 931 976 439 477 . 663 . 581 341 . Parts 392 | 12 27 4 67 36 51 45 18 16 . 35 . 47 34 . Haulers Intercepted 17 | . 2 . 5 . 3 2 3 . . 1 . 1 . . Recyclers Shooed 8 | . 1 3 1 . 1 . 1 . . . . 1 . . Parts Field Recycled . | . . . . . . . . . . . . . . . Retrieved Matter . | . . . . . . . . . . . . . . . Parts Self-Destructed . | . . . . . . . . . . . . . . . Prevented . | . . . . . . . . . . . . . . . Parts Restored . | . . . . . . . . . . . . . . . Kills | -11 -10 -10 -9 -9 -8 -7 -7 -7 -7 -5 -5 -5 -4 -4 ------- Run | Yrd Mat Min Mat Min Mat Fac Sto Rec Scr Fac Was Fac Fac Upp Combat Hostiles Destroyed 142 | . 10 . 28 16 19 18 7 4 . 9 . 14 17 . Guns 88 | . 8 . 25 12 18 14 7 4 . . . . . . Cannons 16 | . . . . . . . . . . . . 7 9 . AOE 36 | . 2 . 2 4 . 4 . . . 9 . 7 8 . Classes Destroyed 14 | 2 5 . 2 1 1 1 . . . 1 . 1 . . Worker 16 | . 1 1 4 1 1 3 1 . . . . 2 2 . Builder 9 | . 1 . . 1 1 1 . 1 . . . 3 1 . Tunneler 10 | 4 . 1 1 2 . . . . . 2 . . . . Hauler 17 | . 2 . 5 . 3 2 3 . . 1 . 1 . . Recycler 12 | 1 1 . 1 1 . 2 . 3 . 3 . . . . Operator 1 | . . . . . . . . . . . . 1 . . Watcher 1 | . . . . . . . . . . 1 . . . . Swarmer 67 | . 2 . 6 11 7 8 3 . . 9 . 7 14 . Grunt 39 | . 8 . 14 3 5 4 1 . . . . 4 . . Brawler 3 | . . . 1 1 . 1 . . . . . . . . Duelist 1 | . . . . 1 . . . . . . . . . . Sentry 22 | . . . 7 . 5 3 3 4 . . . . . . Hunter 3 | . . . . . 2 . . . . . . . 1 . Programmer 7 | . . . . . . 2 . . . . . 3 2 . Best Kill Streak 7 | 5 4 1 6 4 4 7 3 2 . 6 . 5 6 . Combat Bots Only 5 | . 2 . 5 4 4 4 3 2 . 5 . 4 4 . Max Kills in Single Turn 6 | 1 1 1 2 3 2 4 2 2 . 6 . 5 4 . Gunslinging 1 | . . . . . . . 1 . . . . . . . Exploded 5 | . 1 . 2 3 . 2 . . . 5 . 3 4 . Melee . | . . . . . . . . . . . . . . . Uniques/NPCs Destroyed . | . . . . . . . . . . . . . . . Combat | -11 -10 -10 -9 -9 -8 -7 -7 -7 -7 -5 -5 -5 -4 -4 -------- Run | Yrd Mat Min Mat Min Mat Fac Sto Rec Scr Fac Was Fac Fac Upp Hostile Shots Fired 892 | . 77 . 118 54 58 99 42 36 . 15 . 157 229 7 Missed 339 | . 23 . 41 9 19 43 17 14 . 13 . 60 99 1 Hits 553 | . 54 . 77 45 39 56 25 22 . 2 . 97 130 6 Melee 10 | . . . 3 . . . . . . . . 2 5 . Projectile 543 | . 54 . 74 45 39 56 25 22 . 2 . 95 125 6 AOE 3 | . . . . . . . . . . . . 3 . . Critical Strikes 13 | . . . 3 . . 2 1 . . . . 3 4 . Damage Taken 8768 | . 670 . 1017 377 681 598 265 164 . 41 . 2057 2810 88 Core 2164 | . 149 . 110 75 140 72 . 50 . . . 406 1107 55 Absorbed by Shields . | . . . . . . . . . . . . . . . Regen/Repaired (Parts) 805 | . 43 . 479 . 33 . . . . . . . 250 . Core Remaining (%) 68 | 100 . 40 . 53 74 . . . 82 . . 59 . . Volleys Fired 497 | 7 53 1 83 35 52 53 22 14 . 9 . 107 60 1 Largest 3 | 2 2 2 2 2 2 3 3 3 . 1 . 2 1 1 Hottest 206 | 70 70 70 112 112 117 206 161 161 . 90 . 128 105 35 Shots Fired 848 | 14 101 2 163 68 105 116 65 39 . 9 . 105 60 1 Gun 642 | 14 96 2 162 66 105 93 64 39 . . . . . 1 Cannon 179 | . . . . . . 21 1 . . 4 . 100 53 . Launcher 25 | . 5 . 1 2 . 2 . . . 4 . 5 6 . Special 2 | . . . . . . . . . . 1 . . 1 . Kinetic 169 | 7 48 1 42 . . 13 . . . . . 36 21 1 Thermal 624 | 7 48 1 120 66 77 101 65 39 . 4 . 64 32 . Explosive 25 | . 5 . 1 2 . 2 . . . 4 . 5 6 . Electromagnetic 28 | . . . . . 28 . . . . . . . . . Robot Hit Streak 19 | 3 19 1 15 11 10 17 11 14 . 5 . 14 9 4 Robot Miss Streak 5 | 3 4 1 5 3 3 3 3 2 . 1 . 4 3 . Penetration Max 1 | . . . . . . 1 . . . . . . . . Secondary Targets 10 | . 1 . 3 4 . 1 1 . . . . . . . Max Gunslinging Chain 1 | . 1 . 1 1 . 1 1 . . . . . . . Shots Hit Robots 527 | 5 68 1 112 46 71 68 45 32 . 17 . 36 25 1 Core Hits 311 | 5 28 3 51 22 35 53 22 21 . 20 . 31 20 . Critical Kills 12 | . . . . . . . . . . . . 6 6 . Critical Parts Destroyed 17 | . 1 . . . . . . . . . . 9 7 . Critical Strikes 74 | . 4 . 13 3 9 8 1 2 . 2 . 18 14 . Burn 39 | . 3 . 13 3 9 8 1 2 . . . . . . Destroy 32 | . 1 . . . . . . . . . . 18 13 . Sever 3 | . . . . . . . . . . 2 . . 1 . Melee Attacks 86 | . . 1 3 . . 25 2 . . 40 . 14 1 . Impact 4 | . . 1 3 . . . . . . . . . . . Slashing 69 | . . . . . . 25 2 . . 40 . 1 1 . Piercing 13 | . . . . . . . . . . . . 13 . . Sneak Attacks 11 | . . . . . . 3 . . . 7 . 1 . . Combat Hostiles . | . . . . . . . . . . . . . . . Follow-up Attacks . | . . . . . . . . . . . . . . . Damage Inflicted 14107 | 69 1188 40 2078 1071 1385 1865 904 720 . 1597 . 1690 1492 8 Guns 7920 | 69 892 15 1935 794 1340 1269 878 720 . . . . . 8 Cannons 1194 | . . . . . . 28 26 . . . . 660 480 . Explosions 3683 | . 289 . 98 264 45 362 . . . 782 . 859 984 . Melee 1217 | . . . . . . 206 . . . 815 . 168 28 . Ramming 93 | . 7 25 45 13 . . . . . . . 3 . . Kinetic 1868 | 56 402 15 498 . . 130 . . . . . 433 326 8 Thermal 7004 | 13 490 . 1437 794 1041 1167 904 720 . . . 227 211 . Explosive 3516 | . 289 . 98 264 . 362 . . . 782 . 794 927 . Electromagnetic 409 | . . . . . 344 . . . . . . 65 . . Impact . | . . . . . . . . . . . . . . . Slashing 1049 | . . . . . . 206 . . . 815 . . 28 . Piercing 168 | . . . . . . . . . . . . 168 . . Highest Corruption 22 | . . . . . 2 1 3 3 . 6 6 22 1 1 Average Corruption 4 | . . . . . 2 1 1 2 . 4 6 10 1 1 Corruption Purged 2 | . . . . . . . . 2 . . . . . . Corruption Blocked . | . . . . . . . . . . . . . . . Effects 148 | . . . . . 17 5 11 28 . 12 2 72 1 . Message Errors 41 | . . . . . 3 2 1 12 . 3 . 20 . . Matter Fused 37 | . . . . . 6 2 3 10 . 4 . 11 1 . Heat Flow Errors 14 | . . . . . 2 . . . . 1 1 10 . . Energy Discharges 14 | . . . . . 3 1 2 2 . 2 . 4 . . Parts Rejected 3 | . . . . . . . . . . . . 3 . . Parts Fused 1 | . . . . . . . . . . . . 1 . . Data Loss (minor) 18 | . . . . . 1 . 3 2 . 2 1 9 . . Data Loss (major) 8 | . . . . . 1 . 1 1 . . . 5 . . Misfires 2 | . . . . . 1 . 1 . . . . . . . Alerts 1 | . . . . . . . . . . . . 1 . . Misdirections 5 | . . . . . . . . . . . . 5 . . Weapon Failures 4 | . . . . . . . . 1 . . . 3 . . Overload Shots 2 | . . . . . . . . . . 2 . . . . Overflow Damage 558 | . 6 . . 15 35 88 . . . 86 . 86 242 . Projectiles 13 | . . . . . . . . . . . . 13 . . Explosions 413 | . 6 . . 15 35 31 . . . 11 . 73 242 . Melee 132 | . . . . . . 57 . . . 75 . . . . Knockbacks 5 | . . . . . . . . . . . . 3 2 . Impact . | . . . . . . . . . . . . . . . Kinetic 5 | . . . . . . . . . . . . 3 2 . Secondary . | . . . . . . . . . . . . . . . Self-Inflicted Damage 571 | . . . . . 202 13 . . . . . 44 312 . Shots 9 | . . . . . 3 1 . . . . . 1 4 . Rammed 23 | . 3 7 8 4 . . . . . . . 1 . . Targets Rammed 27 | . 4 7 10 5 . . . . . . . 1 . . Kicked . | . . . . . . . . . . . . . . . Crushed 4 | . 1 . 2 1 . . . . . . . . . . Highest Temperature 497 | 36 267 9 183 231 163 484 60 72 . 266 193 497 294 . Average Temperature 78 | 15 67 6 40 82 34 117 24 25 . 112 100 120 58 . Received Heat Transfer 1953 | . 324 . 393 66 117 189 63 48 . 9 . 582 162 . Effects 18 | . . . . . . 2 . . . 3 . 13 . . Shutdowns 7 | . . . . . . 1 . . . . . 6 . . Energy Bleed 2 | . . . . . . 1 . . . . . 1 . . Interference 4 | . . . . . . . . . . 3 . 1 . . Short Circuit 1 | . . . . . . . . . . . . 1 . . Damage (major) 4 | . . . . . . . . . . . . 4 . . Siege Activations . | . . . . . . . . . . . . . . . Martial Activations . | . . . . . . . . . . . . . . . Shielding Activations . | . . . . . . . . . . . . . . . Robots Disrupted . | . . . . . . . . . . . . . . . Combat Hostiles . | . . . . . . . . . . . . . . . Robots Corrupted . | . . . . . . . . . . . . . . . Combat Hostiles . | . . . . . . . . . . . . . . . Parts Fried 2 | . . . . . 2 . . . . . . . . . Impact Corruptions . | . . . . . . . . . . . . . . . Robots Melted 3 | . . . 1 . 1 . 1 . . . . . . . Combat Hostiles 2 | . . . 1 . 1 . . . . . . . . . Parts Melted 41 | . 1 . 10 1 9 12 8 . . . . . . . Heat Transferred 17711 | 37 1628 . 4107 1887 2912 3048 1997 1675 . . . 222 198 . Parts Sabotaged . | . . . . . . . . . . . . . . . Parts Stolen . | . . . . . . . . . . . . . . . Parts Stripped . | . . . . . . . . . . . . . . . Power Chain Reactions 3 | . . . . . 1 . . . . . . 2 . . Alert | -11 -10 -10 -9 -9 -8 -7 -7 -7 -7 -5 -5 -5 -4 -4 ------- Run | Yrd Mat Min Mat Min Mat Fac Sto Rec Scr Fac Was Fac Fac Upp Maximum Alert Level 4 | . . . 1 . 1 1 . . . 1 . 4 3 . Low Security (%) 71 | 100 100 100 50 100 72 88 100 100 . 66 100 55 . . Level 1 17 | . . . 49 . 27 11 . . . 33 . 11 . . Level 2 5 | . . . . . . . . . . . . 18 54 . Level 3 3 | . . . . . . . . . . . . 2 45 . Level 4 1 | . . . . . . . . . . . . 12 . . Level 5 . | . . . . . . . . . . . . . . . High Security . | . . . . . . . . . . . . . . . Max Security . | . . . . . . . . . . . . . . . Peak Influence 1225 | 10 55 5 377 195 342 229 166 83 . 288 96 1225 978 . Initial 583 | . . . . 127 39 147 85 37 . . 96 46 583 . Average 178 | 1 11 . 184 107 113 142 67 27 . 139 81 346 742 . Influence Increases 7390 | 25 300 11 983 456 701 628 494 373 . 625 . 1844 950 . Destroy 0b10 Robot/C 3340 | . 200 . 660 320 420 360 240 80 . 180 . 540 340 . Destroy 0b10 Robot/NC 360 | 25 25 10 55 25 25 40 25 20 . 35 . 60 15 . Destroy Leader 698 | . 34 . 200 50 116 84 68 . . 24 . 72 50 . Allied During Kill 227 | . . . 23 . 3 . 73 6 . . . 122 . . Successful Hack 276 | . 30 . 19 . 21 24 9 54 . 30 . 65 24 . Select Force Hacks 210 | . . . . . . . . 210 . . . . . . Disable Machine 435 | . . . . 15 60 30 15 . . 30 . 180 105 . Destroy Structure 659 | . 11 1 11 16 41 30 4 3 . 86 . 250 206 . Partial Spotted 165 | . . . . . . . . . . 60 . 75 30 . Lose Combat Pursuer 1020 | . . . 15 30 15 60 60 . . 180 . 480 180 . Influence Decreases 6817 | 25 300 11 656 680 480 763 585 471 . 348 211 718 1231 338 Entered New Map 1754 | . . . . 200 64 177 104 61 . . 181 20 609 338 Time Decay 4214 | 25 226 11 571 470 406 556 310 410 . 269 30 508 422 . Lost Part 431 | . 11 . 40 10 10 20 10 . . . . 130 200 . Lost Ally 365 | . 10 . 45 . . 10 161 . . 79 . 60 . . Purge Threat 53 | . 53 . . . . . . . . . . . . . Squads Dispatched 48 | . 1 . 5 . 3 7 5 . . 7 . 11 9 . Investigation 11 | . . . 1 . 2 . . . . 4 . 3 1 . Extermination 11 | . . . . . . 3 1 . . 1 . 4 2 . Reinforcement 17 | . 1 . 4 . 1 1 4 . . 2 . 2 2 . Assault 3 | . . . . . . . . . . . . 2 1 . Garrison 6 | . . . . . . 3 . . . . . . 3 . Intercept . | . . . . . . . . . . . . . . . Searches Triggered . | . . . . . . . . . . . . . . . Construction Impeded . | . . . . . . . . . . . . . . . Haulers Reinforced 4 | . . . . . . 1 2 . . 1 . . . . Active Scanning Responses . | . . . . . . . . . . . . . . . Cargo Convoy Interrupts . | . . . . . . . . . . . . . . . Stealth | -11 -10 -10 -9 -9 -8 -7 -7 -7 -7 -5 -5 -5 -4 -4 --------- Run | Yrd Mat Min Mat Min Mat Fac Sto Rec Scr Fac Was Fac Fac Upp Distress Signals 21 | . . . 3 . 4 1 3 . . 6 . 2 2 . Communications Jammed 16 | . . . . . . . . . . . . 13 3 . Distress Signals 16 | . . . . . . . . . . . . 13 3 . Times Spotted 330 | . 18 . 55 18 38 31 23 4 . 21 . 71 46 5 Peak Tracking Total 15 | . 4 . 4 4 5 7 6 2 . 6 . 9 15 5 Tactical Retreats 36 | . . . 1 1 1 2 3 . . 9 . 13 6 . Traps | -11 -10 -10 -9 -9 -8 -7 -7 -7 -7 -5 -5 -5 -4 -4 ------- Run | Yrd Mat Min Mat Min Mat Fac Sto Rec Scr Fac Was Fac Fac Upp Traps Triggered 8 | . . . 2 . . 1 . . . 4 . . 1 . Indirectly . | . . . . . . . . . . . . . . . Trap Hack Attempts . | . . . . . . . . . . . . . . . Triggered . | . . . . . . . . . . . . . . . Disarmed . | . . . . . . . . . . . . . . . Reprogrammed . | . . . . . . . . . . . . . . . Reused . | . . . . . . . . . . . . . . . Traps Extracted . | . . . . . . . . . . . . . . . Installed . | . . . . . . . . . . . . . . . Triggered . | . . . . . . . . . . . . . . . Machines | -11 -10 -10 -9 -9 -8 -7 -7 -7 -7 -5 -5 -5 -4 -4 ---------- Run | Yrd Mat Min Mat Min Mat Fac Sto Rec Scr Fac Was Fac Fac Upp Machines Disabled 29 | . . . . 1 4 2 1 . . 2 . 12 7 . Max in Single Turn 3 | . . . . 1 2 1 1 . . 1 . 2 3 . Machines Repaired . | . . . . . . . . . . . . . . . Machines Dismantled . | . . . . . . . . . . . . . . . Machines Sabotaged . | . . . . . . . . . . . . . . . Overloaded Fab Kills . | . . . . . . . . . . . . . . . Hacking | -11 -10 -10 -9 -9 -8 -7 -7 -7 -7 -5 -5 -5 -4 -4 --------- Run | Yrd Mat Min Mat Min Mat Fac Sto Rec Scr Fac Was Fac Fac Upp Machines Accessed 83 | . 8 1 11 . 8 6 3 13 1 13 . 13 6 . Terminals 51 | . 7 1 8 . 6 4 3 6 . 7 . 7 2 . Fabricators 4 | . . . . . . . . . . 2 . 1 1 . Repair Stations 5 | . 1 . 1 . 1 . . . . . . . 2 . Recycling Units 15 | . . . . . . . . 7 . 3 . 4 1 . Scanalyzers 7 | . . . 2 . 1 2 . . . 1 . 1 . . Garrison Access . | . . . . . . . . . . . . . . . Total Hacks 199 | . 27 2 29 . 19 11 5 22 1 33 . 38 12 . Successful 115 | . 18 . 15 . 10 8 3 15 1 16 . 21 8 . Failed 83 | . 9 2 14 . 9 3 2 7 . 17 . 16 4 . Catastrophic 22 | . 2 1 2 . 2 1 . 1 . 6 . 5 2 . Database Lockouts 1 | . . . . . . . . . . . . 1 . . Manual 125 | . 20 2 20 . 13 4 5 19 . 21 . 18 3 . Terminals 136 | . 25 2 20 . 15 8 5 15 . 20 . 23 3 . Fabricators 12 | . . . . . . . . . . 7 . 4 1 . Repair Stations 14 | . 2 . 3 . 2 . . . . . . . 7 . Recycling Units 17 | . . . . . . . . 7 . 4 . 5 1 . Scanalyzers 19 | . . . 6 . 2 3 . . . 2 . 6 . . Garrison Access . | . . . . . . . . . . . . . . . Terminal Hacks 31 | . 9 . . . 1 4 1 2 1 4 . 8 1 . Part Schematic 3 | . 2 . . . . . . 1 . . . . . . Robot Schematic 1 | . 1 . . . . . . . . . . . . . Robot Analysis 3 | . 2 . . . . . . . . 1 . . . . Prototype ID Bank 3 | . 1 . . . . . . 1 . . . 1 . . Open Door 1 | . . . . . . . 1 . . . . . . . Branch Access Points 3 | . . . . . 1 1 . . . 1 . . . . Emergency Access Points 1 | . 1 . . . . . . . . . . . . . Terminal Index 1 | . . . . . . . . . . 1 . . . . Fabricator Index 1 | . . . . . . . . . . . . 1 . . Alert Level 1 | . . . . . . . . . . . . 1 . . Unreport Threat 1 | . 1 . . . . . . . . . . . . . Locate Traps 2 | . . . . . . 1 . . . . . 1 . . Dispatch Records 1 | . . . . . . . . . . . . 1 . . Maintenance Status 1 | . . . . . . . . . . . . 1 . . Recall Investigation 1 | . . . . . . . . . . . . 1 . . Hauler Manifests 5 | . 1 . . . . 1 . . . 1 . 1 1 . Zone Layout 1 | . . . . . . 1 . . . . . . . . Proto ID Catalog 1 | . . . . . . . . . 1 . . . . . Fabricator Hacks 7 | . . . . . . . . . . 4 . 2 1 . Load Schematic 3 | . . . . . . . . . . 2 . 1 . . Build 4 | . . . . . . . . . . 2 . 1 1 . Repair Station Hacks 11 | . 2 . 2 . 2 . . . . . . . 5 . Scan Component 6 | . 1 . 1 . 1 . . . . . . . 3 . Repair 5 | . 1 . 1 . 1 . . . . . . . 2 . Recycling Unit Hacks . | . . . . . . . . . . . . . . . Scanalyzer 15 | . . . 6 . 1 2 . . . 2 . 4 . . Insert Component 3 | . . . 1 . . . . . . 1 . 1 . . Analyze 3 | . . . 1 . . . . . . 1 . 1 . . Retrieve Study 9 | . . . 4 . 1 2 . . . . . 2 . . Garrison Access Hacks . | . . . . . . . . . . . . . . . Unauthorized Hacks 51 | . 7 . 7 . 6 2 2 13 . 6 . 7 1 . Terminals 35 | . 7 . 7 . 6 2 2 6 . 2 . 3 . . Assimilate 3 | . 1 . . . . 1 . . . 1 . . . . Botnet 11 | . 1 . 1 . 2 1 1 2 . 1 . 2 . . Operators 1 | . . . . . . . . . . . . 1 . . Skim 20 | . 5 . 6 . 4 . 1 4 . . . . . . Fabricators 2 | . . . . . . . . . . 1 . 1 . . Prioritize 2 | . . . . . . . . . . 1 . 1 . . Repair Stations . | . . . . . . . . . . . . . . . Recycling Units 14 | . . . . . . . . 7 . 3 . 3 1 . Tunnel 7 | . . . . . . . . 7 . . . . . . Fedlink 5 | . . . . . . . . . . 3 . 2 . . Scrapoids 2 | . . . . . . . . . . . . 1 1 . Scanalyzers . | . . . . . . . . . . . . . . . Garrison Access . | . . . . . . . . . . . . . . . Data Cores Recovered 1 | . . . . . . . . . . . . 1 . . Used . | . . . . . . . . . . . . . . . Hacking Detections 58 | . 7 1 8 . 7 4 3 6 . 8 . 10 4 . Full Trace Events 3 | . . . . . 2 . . 1 . . . . . . Feedback Events . | . . . . . . . . . . . . . . . Feedback Blocked . | . . . . . . . . . . . . . . . Robot Schematics Acquired 1 | . 1 . . . . . . . . . . . . . Robots Built . | . . . . . . . . . . . . . . . Authchips . | . . . . . . . . . . . . . . . Time . | . . . . . . . . . . . . . . . Total Robot Build Rating . | . . . . . . . . . . . . . . . Part Schematics Acquired 6 | . 2 . 1 . . . . 1 . 1 . 1 . . Parts Built 7 | . . . . . . . . . . 3 . 2 2 . Authchips 3 | . . . . . . . . . . 2 . 1 . . Time 179 | . . . . . . . . . . 114 . 26 39 . Total Part Build Rating 40 | . . . . . . . . . . 14 . 12 14 . Part Studies Acquired 7 | . . . 2 . 1 2 . . . . . 2 . . Parts Repaired 5 | . 1 . 1 . 1 . . . . . . . 2 . Time 216 | . 26 . 26 . 38 . . . . . . . 126 . Parts Recycled . | . . . . . . . . . . . . . . . Recycled Matter . | . . . . . . . . . . . . . . . Retrieved Matter . | . . . . . . . . . . . . . . . Retrieved Components . | . . . . . . . . . . . . . . . Parts Scanalyzed 3 | . . . 1 . . . . . . 1 . 1 . . Part Schematics Acquired 3 | . . . 1 . . . . . . 1 . 1 . . Parts Damaged . | . . . . . . . . . . . . . . . Bothacking | -11 -10 -10 -9 -9 -8 -7 -7 -7 -7 -5 -5 -5 -4 -4 ------------ Run | Yrd Mat Min Mat Min Mat Fac Sto Rec Scr Fac Was Fac Fac Upp Used RIF Installer . | . . . . . . . . . . . . . . . Robots Hacked 2 | . . . . . . . . . . 1 . . 1 . Non-combat 2 | . . . . . . . . . . 1 . . 1 . Combat . | . . . . . . . . . . . . . . . Robot Hacks Applied 2 | . . . . . . . . . . 1 . . 1 . find_chute 2 | . . . . . . . . . . 1 . . 1 . Relay Couplers Released . | . . . . . . . . . . . . . . . Fabnet Peak Effective % . | . . . . . . . . . . . . . . . Robots Rewired 15 | . . . . . . . . 15 . . . . . . Allies Hacked . | . . . . . . . . . . . . . . . Hacks Repelled . | . . . . . . . . . . . . . . . Allies | -11 -10 -10 -9 -9 -8 -7 -7 -7 -7 -5 -5 -5 -4 -4 -------- Run | Yrd Mat Min Mat Min Mat Fac Sto Rec Scr Fac Was Fac Fac Upp Total Allies 37 | . 1 3 . 1 . 1 10 15 . 1 . 5 . . Largest Group 15 | . 1 3 3 1 1 1 10 15 15 14 . 5 . . Highest-Rated Group 316 | . 10 40 40 31 31 10 173 316 316 284 . 235 . . Highest-Rated Ally 47 | . 10 16 16 31 31 10 29 40 40 40 . 47 . . Total Orders 1 | . . . . . . . . . . 1 . . . . STAY 1 | . . . . . . . . . . 1 . . . . Ally Attacks 214 | . . . 46 . 13 . 59 . . 25 . 71 . . Total Damage 5011 | . . . 379 . 147 . 818 . . 410 . 3257 . . Kills 34 | . . . 5 . 2 . 7 . . . . 20 . . Allies Corrupted 1 | . . . . . . . 1 . . . . . . . Allies Melted 1 | . . . . . . . 1 . . . . . . . Intel | -11 -10 -10 -9 -9 -8 -7 -7 -7 -7 -5 -5 -5 -4 -4 ------- Run | Yrd Mat Min Mat Min Mat Fac Sto Rec Scr Fac Was Fac Fac Upp Active Infowar (turns) 14302 | 44 975 844 1534 . 1942 1631 682 1271 1811 719 76 1738 1035 . Optics 8630 | . . . . . . 1631 682 1271 1811 647 76 1477 1035 . Sensors 1449 | . . . . . . . . . . . . 981 468 . Seismic 9732 | 44 975 844 1534 . 1942 1354 639 1221 173 710 76 220 . . Jamming 2192 | . . . . . . . . . . 230 76 1661 225 . Robot Analysis Total 3 | . 2 . . . . . . . . 1 . . . . Derelict Logs Recovered 3 | . . 1 . 2 . . . . . . . . . . Drone Launches . | . . . . . . . . . . . . . . . Drone Recoveries . | . . . . . . . . . . . . . . . Exploration | -11 -10 -10 -9 -9 -8 -7 -7 -7 -7 -5 -5 -5 -4 -4 ------------- Run | Yrd Mat Min Mat Min Mat Fac Sto Rec Scr Fac Was Fac Fac Upp Turns Passed 17675 | 137 1072 844 3338 1186 1943 1631 682 1271 1811 719 76 1927 1036 2 Spaces Moved 11657 | 65 450 498 1226 498 646 902 302 705 1315 1294 158 2508 1090 . Core 91 | 4 . . . . . . . . . . . . 87 . Treads 3108 | 61 450 498 1226 498 369 1 . 5 . . . . . . Legs . | . . . . . . . . . . . . . . . Wheels 3412 | . . . . . 277 901 302 700 1232 . . . . . Hover 5046 | . . . . . . . . . 83 1294 158 2508 1003 . Flight . | . . . . . . . . . . . . . . . Fastest Speed 32 | 50 160 160 160 213 145 135 135 135 98 32 47 41 50 . Average Speed 115 | 153 160 160 210 213 187 137 135 135 132 37 47 54 65 . Slowest Speed 272 | 160 160 160 240 213 220 272 150 225 158 111 47 191 129 . Overloaded Moves 1 | . . . . . . . . . . . . 1 . . Propulsion Burnouts . | . . . . . . . . . . . . . . . Robots Hopped . | . . . . . . . . . . . . . . . Potential Cave-ins . | . . . . . . . . . . . . . . . Cave-ins Triggered . | . . . . . . . . . . . . . . . Exploration Rate (%) 63 | 4 87 97 94 98 61 24 43 96 88 25 90 51 31 . Regions Visited 14 Branch Regions 6 Pre-discovered Areas 15 | . 1 . 4 1 . . . 7 1 1 . . . . Known Exits Taken 7 | . . 1 1 1 1 1 . 1 . . . 1 . . Unknown Exits Taken 5 | 1 1 . . . . . 1 . 1 . . . 1 . Scrap Searched 13 | . . 1 . 1 . . . . 11 . . . . . Spaces Dug 213 | . 9 1 7 19 . 34 . . . 26 . 84 33 . Terrain Destroyed 376 | . 9 1 7 19 40 36 . . . 49 . 106 109 . Melee 58 | . . 1 1 . . 20 . . . 25 . 11 . . Projectile 87 | . . . . . . 8 . . . 2 . 54 23 . AOE 231 | . 9 . 6 19 40 8 . . . 22 . 41 86 . Terrain Rammed . | . . . . . . . . . . . . . . . Walls Destroyed . | . . . . . . . . . . . . . . . Machines Disabled . | . . . . . . . . . . . . . . . Actions | -11 -10 -10 -9 -9 -8 -7 -7 -7 -7 -5 -5 -5 -4 -4 --------- Run | Yrd Mat Min Mat Min Mat Fac Sto Rec Scr Fac Was Fac Fac Upp Total 14912 | 85 700 540 1814 550 1275 1147 520 990 1388 1452 159 2944 1346 2 Wait 1982 | . 165 24 391 7 545 122 147 66 47 67 . 246 155 . Move 11644 | 64 449 497 1225 497 645 901 301 704 1314 1294 157 2507 1089 . Hop . | . . . . . . . . . . . . . . . Pick Up 124 | 7 16 4 43 1 5 6 4 5 5 9 . 11 8 . Fast Attach 69 | 7 . . 9 . 5 1 16 1 . 6 . 10 14 . Attach 50 | . 3 . 5 1 5 4 2 2 5 4 . 14 5 . Detach 19 | . . . 1 . 4 . 2 3 1 . . 5 3 . Swap 112 | . 5 2 20 3 4 25 6 3 2 13 1 19 8 1 Drop 116 | . 5 4 24 1 10 7 18 9 14 10 1 10 3 . Fire 497 | 7 53 1 83 35 52 53 22 14 . 9 . 107 60 1 Melee 86 | . . 1 3 . . 25 2 . . 40 . 14 1 . Ram 1 | . . . . . . . . . . . . 1 . . Kick . | . . . . . . . . . . . . . . . Crush 26 | . 4 7 10 5 . . . . . . . . . . Escape Stasis 3 | . . . . . . 3 . . . . . . . . Rewire 183 | . . . . . . . . 183 . . . . . . Trap . | . . . . . . . . . . . . . . . Miscellaneous . | . . . . . . . . . . . . . . . Route ------- -11/Scrapyard -10/Materials (discovered 5 exits: *Mat x3 / *Min / Sub) -10/Mines (discovered 3 exits: *Mat x2 / [*Exi]) -9/Materials (discovered 5 exits: *Mat x3 / *Min x2) -9/Mines (discovered 3 exits: *Mat x2 / [*Zio]) -8/Materials (discovered 2 exits: *Fac x2) -7/Factory (discovered 4 exits: [*Fac] / *Sto / Low x2) -7/Storage -7/Recycling (discovered 2 exits: *Fac / *Scr) -7/Scraptown (discovered 2 exits: *Fac x2) -5/Factory (discovered 3 exits: *Fac / *Upp x2) -5/Waste -5/Factory -4/Factory (discovered 2 exits: *Res / [*Upp]) -4/Upper Caves History --------- Turn | Location | Event 10 | -11/Scrapyard | Discovered new exit (range 16) 138 | -11/Scrapyard | Entered Materials 308 | -10/Materials | Build established: Mutant 350 | -10/Materials | Discovered new exit (range 11) 402 | -10/Materials | Repaired Lgt. Treads 626 | -10/Materials | Discovered new exit (range 5) 952 | -10/Materials | Core integrity fell below 50% 1039 | -10/Materials | Discovered new exit (range 15) 1046 | -10/Materials | Identified exit to Materials 1150 | -10/Materials | Identified exit to Subcaves 1150 | -10/Materials | Learned location of 2 exits from Materials 1163 | -10/Materials | Learned Storage security intel 1191 | -10/Materials | Learned location of Mines (-9) 1210 | -10/Materials | Entered Mines 1211 | -10/Mines | Met a Derelict bent on vengeance 1252 | -10/Mines | Assisted by bots powering up and referring to "LRC-V3" 1290 | -10/Mines | Found a Scrap Suit stashed away for nefarious purposes 1569 | -10/Mines | Received a Rocket Launcher from a helpful Derelict 1577 | -10/Mines | Assembled infested the area 1706 | -10/Mines | Discovered new exit (range 5) 2054 | -10/Mines | Entered Materials 2054 | -9/Materials | Accompanied by 3 allies 2054 | -9/Materials | Evolved 2 slots: Propulsion x1, Utility x1 2055 | -9/Materials | Identified exit to Materials 2055 | -9/Materials | Identified exit to Mines 4452 | -9/Materials | Repaired Huge Storage Unit 5171 | -9/Materials | Learned location of 1 exit from Recycling 5238 | -9/Materials | Learned location of Zion (-7) 5392 | -9/Materials | Entered Mines 5887 | -9/Mines | A Derelict revealed a hidden shortcut to a safe place 6014 | -9/Mines | Discovered exit to Materials (range 15) 6196 | -9/Mines | Discovered exit to Materials (range 10) 6430 | -9/Mines | Received a Mining Laser from a helpful Derelict 6578 | -9/Mines | Entered Materials 6578 | -8/Materials | Accompanied by 1 ally 6578 | -8/Materials | Evolved 2 slots: Propulsion x1, Utility x1 6579 | -8/Materials | Identified exit to Factory 8318 | -8/Materials | Repaired Airjet 8521 | -8/Materials | Entered Factory 8521 | -7/Factory | Evolved 2 slots: Utility x1, Weapon x1 8522 | -7/Factory | Identified exit to Storage 8761 | -7/Factory | Identified exit to Lower Caves 9021 | -7/Factory | Garrison activated, responded to threat 9053 | -7/Factory | Discovered new exit (range 19) 9333 | -7/Factory | Build established: Tank 10152 | -7/Factory | Entered Storage 10589 | -7/Storage | Assisted by bots powering up and referring to "LRC-V3" 10682 | -7/Storage | Lost 5 allies 10832 | -7/Storage | Used back door to open Recycling access 10832 | -7/Storage | Discovered new exit (range 3) 10834 | -7/Storage | Entered Recycling 10835 | -7/Recycling | Identified exit to Scraptown 10859 | -7/Recycling | Lost 4 allies 11441 | -7/Recycling | Discovered new exit (range 18) 12033 | -7/Recycling | Scanned before Scraplab entrance 12059 | -7/Recycling | Entered Scraplab 12105 | -7/Recycling | Entered Scraptown 12105 | -7/Scraptown | Accompanied by 15 allies 12105 | -7/Scraptown | System corruption cleaned by C-Scrubber 12301 | -7/Scraptown | Discovered new exit (range 11) 12327 | -7/Scraptown | Build established: Commander-Mutant 12394 | -7/Scraptown | Heard Great Nut preacher, LISTEN AND RECITE! 12417 | -7/Scraptown | Visited Cyclists 12455 | -7/Scraptown | Visited Bundlers 12513 | -7/Scraptown | Visited SPCMW 12527 | -7/Scraptown | Visited Comm Corps 12539 | -7/Scraptown | Visited Assassins FH 12766 | -7/Scraptown | Visited Shadow of the Wyrm 12774 | -7/Scraptown | Visited Awakened 12840 | -7/Scraptown | Learned location of Extension (-4) 12910 | -7/Scraptown | Visited UFD Registry 12910 | -7/Scraptown | Registered with UFD as "Gunstep" 12962 | -7/Scraptown | Visited Science Guys 13007 | -7/Scraptown | Visited Observation Area 13028 | -7/Scraptown | Visited Curators Association 13065 | -7/Scraptown | Visited Scrap Suit Storage 13084 | -7/Scraptown | Visited DA-N13 Charitable Foundation 13090 | -7/Scraptown | Found DCF Scrap (28 items) 13121 | -7/Scraptown | Visited Supply Room 13169 | -7/Scraptown | Visited Derelict Rescue Squad 13332 | -7/Scraptown | Found DRS Beacon 13832 | -7/Scraptown | Met Optimus 13832 | -7/Scraptown | Accepted into 0bPrime 13881 | -7/Scraptown | Discovered new exit (range 3) 13916 | -7/Scraptown | Entered Factory 13916 | -5/Factory | Accompanied by 14 allies 13916 | -5/Factory | Evolved 4 slots: Power x1, Propulsion x1, Utility x2 13925 | -5/Factory | Identified exit to Upper Caves 13975 | -5/Factory | Loaded intel: 8 recycling unit locations 14023 | -5/Factory | Lost 4 allies 14049 | -5/Factory | Learned location of Protoforge (-3) 14211 | -5/Factory | Discovered new exit (range 15) 14299 | -5/Factory | Build established: Sprinter 14363 | -5/Factory | Fabricated Cmb. Airjet (x2) 14475 | -5/Factory | Fabricated Cld. Airjet (x1) 14629 | -5/Factory | Build established: Mutant 14635 | -5/Factory | Manually triggered Chute Trap 14635 | -5/Factory | Sucked down chute 14635 | -5/Factory | Entered Waste 14635 | -5/Waste | The area was eerily silent 14706 | -5/Waste | Discovered new exit (range 11) 14711 | -5/Waste | Entered Factory 14724 | -5/Factory | Central database locked down 14875 | -5/Factory | Loaded intel: 8 recycling unit locations 15591 | -5/Factory | Build established: Hacker-Scout 15891 | -5/Factory | System corruption reached 10% 15930 | -5/Factory | Build established: Hacker-Mutant 16053 | -5/Factory | Lost 3 parts (1p1n1w) 16129 | -5/Factory | Lost 3 parts (1n2u) 16333 | -5/Factory | Scrapoids reinforcements arrived? 16412 | -5/Factory | Fabricated Cmb. Gravmag System (x2) 16426 | -5/Factory | Lost 3 allies 16511 | -5/Factory | First assault squad dispatched 16599 | -5/Factory | Discovered new exit (range 7) 16602 | -5/Factory | Identified exit to Factory 16638 | -5/Factory | Entered another Factory area 16638 | -4/Factory | Evolved 2 slots: Propulsion x1, Utility x1 16769 | -4/Factory | Repaired Broken Cmb. Airjet+ 16826 | -4/Factory | Repaired Cmb. Gravmag System+ 16892 | -4/Factory | Lost 4 parts (2p1n1w) 16941 | -4/Factory | Build established: Mutant 16993 | -4/Factory | Found Quantum Capacitor 17002 | -4/Factory | Spotted B-86 Titan 17058 | -4/Factory | Discovered new exit (range 17) 17072 | -4/Factory | Identified exit to Research 17082 | -4/Factory | Fabricated Hyp. Mass Driver? 17138 | -4/Factory | First assault squad dispatched 17378 | -4/Factory | Garrison activated, responded to threat 17620 | -4/Factory | Core integrity fell below 50% 17627 | -4/Factory | Core integrity fell below 20% 17658 | -4/Factory | Lost 11 parts (1p3n5u2w) 17663 | -4/Factory | Discovered new exit (range 20) 17674 | -4/Factory | Entered Upper Caves 17676 | -4/Upper Caves | Destroyed by S-27 Virus with Autogun Last Messages --------------- 17650_ Acquired Imp. Antigrav System. 17653_ Dropped Adv. Reaction Control System. 17653_ Acquired Antigrav System. 17656_ O-16 Technician: "IFF HANDSHAKE FAILED. SECURING TERMINAL." 17660_ Pressure Siphon disabled. 17661_ K-01 Serf cleans the Pressure Siphon. 17663_ ALERT: Hostiles spotted, dispatching reinforcements to Terminal F013. 17663_ EXIT=FOUND 17672_ Penetrated by Slug. 17673_ Acquired Prototype Piercing Weapon. 17673_ Identified Plasma Lance. 17673_ Adv. Visual Processing Unit broken. 17673_ Faulty integration triggers power surge. 17674_ Penetrated by Slug. LOCATION=UNKNOWN GOAL=ESCAPE 17676_ HV Slug penetrates S-27 Virus. 17676_ HV Slug penetrates Wall. Map ----- +----------------------------------------------------+ | ??????????????????????????????????????????? | | ??????????????????????????????????????????? | | ??????????????????????????????????????????? | | ??????????????????????????????????????????? | | ??????????????????????????????????????????? | | ??????????????????????????????????????????? | | ??????????????????????????????????????????? | | ??????????????????????????????????????????? | | ??????????????????????????????????????????? | | ??????????????????????????????????????????? | | ??????????????????????????????????????????? | | ??????????????????????????????????????????? | | ??????????????????????????????????????????? | | ??????????????????????????????????????????? | | ??????????????????????????????????????????? | | ??????????????????????????????????????????? | | ??????????????????????????????????????????? | | ??????????????????????????????????????????? | | ??????????????????????????????????????????? | | ??????????????????????????????????????????? | | ??????????????????????????????????????????? | | ??????????????????????????????????????????? | | ??????????????????????????????????????????? | | ????????????????????????####??????????????? | | ????????????????????# ## #??????????????? | | ????????????????????# s@ #??????????????? | | ????????????????????## #??????????????? | | ?????????????????????# ##??????????????? | | ???????????????????? sss###???????????????? | | ?????????????????? s ??????????????????? | | ?????????????????#### ???????????????????? | | ????????????????????## ???????????????????? | | ?????????????????????#????????????????????? | | ??????????????????????????????????????????? | | ??????????????????????????????????????????? | | ??????????????????????????????????????????? | | ??????????????????????????????????????????? | | ??????????????????????????????????????????? | | ??????????????????????????????????????????? | | ??????????????????????????????????????????? | | ??????????????????????????????????????????? | | ??????????????????????????????????????????? | | ??????????????????????????????????????????? | | ??????????????????????????????????????????? | | ??????????????????????????????????????????? | | ??????????????????????????????????????????? | | ??????????????????????????????????????????? | | ??????????????????????????????????????????? | | ??????????????????????????????????????????? | | ??????????????????????????????????????????? | +----------------------------------------------------+ Best States ------------- Heat Dissipation 78 Energy Generation 31 Energy Capacity 370 Matter Stores 300 Matter Capacity 300 Sight Range 20 Robot Scan Range 16 Terrain Scan Density 10 Jamming Range 14 Armor Coverage 150 Evasion (%) 58 Targeting Accuracy 8 Recoil Reduction 4 Offensive Hacking 12 Defensive Hacking 14 Authchip Count 3 Item Schematics ----------------- Hcp. Storage Unit | -10/Materials | Hacked Huge Storage Unit | -10/Materials | Hacked Cmb. Airjet | -9/Materials | Scanalyzed Hyp. Gauss Cannon | -7/Recycling | Hacked Cld. Airjet | -5/Factory | Scanalyzed Cmb. Gravmag System | -5/Factory | Scanalyzed Robot Schematics ------------------ M-13 Machinist | -10/Materials | Hacked Fabricated ------------ Cmb. Airjet | x2 | -5/Factory | Authchip Cld. Airjet | x1 | -5/Factory | Authchip Cmb. Gravmag System | x2 | -5/Factory | Authchip Hyp. Mass Driver | x2 | -4/Factory | Preloaded Repaired ---------- Lgt. Treads | 69% | -10/Materials Huge Storage Unit | 20% | -9/Materials Airjet | 17% | -8/Materials Cmb. Airjet | 3% | -4/Factory | Broken Cmb. Gravmag System | 17% | -4/Factory Studied --------- Imp. Treads | -9/Materials | Hacked Rocket Launcher | -9/Materials | Hacked Adv. Treads | -8/Materials | Hacked Arm. Huge Wheel | -7/Factory | Hacked Airjet | -7/Factory | Hacked Cmb. Airjet | -5/Factory | Hacked Cmb. Gravmag System | -5/Factory | Hacked Alien Tech Used ----------------- None Achievements -------------- None Challenges ------------ None Game ------ Seed AluminumTerrainFocus Manual? 0 Play Time 02:02:46 Cumulative 181.3 hours Start 2025.10.31 @ 16:10:04 End 2025.10.31 @ 20:43:38 Sessions 3 Manual Loads 0 Difficulty Rogue Special Mode None Game No. 167 Rogue 167 Adventurer 0 Explorer 0 Win Type - Total 6 Types 5/0/1/0/0/0/0/0/0/0 Lore% 80 Gallery% 69 Achievement% 52 Wizard Run 0 Options --------- Layout 1 ASCII 0 Keyboard 1 Movement Arrows Keybinds 0 Fullscreen 1 Font 24/Smallcaps Map View 50x40 Zoom Use 0% Tactical HUD 1 Map Filters NONE Filters NONE Steam 1 RUN: 5c133e81-539d-43e5-a8a3-4ba0c447a553